bitfinex/quotes_SOLUSD_20220103
["timestamp","ask_amount","ask_price","bid_price","bid_amount"]
[1641213320382,50.43859065,174.54,174.53,4.08115075]
[1641213320785,13.43859065,174.54,174.53,4.08115075]
[1641213321889,11.88899997,174.54,174.53,4.08115075]
[1641213322788,3.03219997,174.54,174.53,4.08115075]
[1641213323393,2.0495907,174.55,174.53,4.08115075]
[1641213323591,0.50000002,174.55,174.53,4.08115075]
[1641213324192,9.09560002,174.55,174.53,6.61335069]
[1641213324592,9.35560002,174.55,174.53,4.08115075]
[1641213324993,11.86489394,174.55,174.53,4.08115075]
[1641213325394,11.60489394,174.55,174.53,6.61335069]
[1641213325593,10.14459068,174.57,174.53,6.61335069]
[1641213325793,1.80959068,174.57,174.53,4.08115075]
[1641213325993,0.26,174.57,174.53,4.08115075]
[1641213326393,37.0124,174.59,174.53,4.08115075]
[1641213326598,2.59142418,174.58,174.53,4.08115075]
[1641213326998,2.85142418,174.58,174.53,4.08115075]
[1641213327198,8.5957,174.56,174.53,4.08115075]
[1641213327396,3.03219997,174.55,174.53,4.08115075]
[1641213327900,3.29219997,174.55,174.53,4.08115075]
[1641213328796,11.88779997,174.55,174.53,4.08115075]
[1641213329197,0.50000002,174.54,174.53,4.08115075]
[1641213329999,11.88779997,174.55,174.53,4.08115075]
[1641213330398,0.50000002,174.54,174.53,4.08115075]
[1641213331602,9.09610002,174.54,174.53,4.08115075]
[1641213331799,0.50000002,174.54,174.53,4.08115075]
[1641213332103,0.26,174.54,174.53,6.61335069]
[1641213332502,0.26,174.54,174.53,4.08115075]
[1641213332701,0.76000002,174.54,174.53,4.08115075]
[1641213332902,9.35600002,174.54,174.53,4.08115075]
[1641213333401,9.09600002,174.54,174.53,4.08115075]
[1641213333903,9.35600002,174.54,174.53,4.08115075]
[1641213335004,9.09600002,174.54,174.53,4.08115075]
[1641213335404,0.50000002,174.54,174.53,4.08115075]
[1641213335804,3.53219999,174.54,174.53,4.08115075]
[1641213336805,10.14499068,174.56,174.53,4.08115075]
[1641213337005,10.40499068,174.56,174.53,4.08115075]
[1641213337209,3.03219997,174.55,174.53,4.08115075]
[1641213338206,11.62769997,174.55,174.53,4.08115075]
[1641213339909,3.03219997,174.55,174.53,4.08115075]
[1641213340208,3.03219997,174.55,174.53,6.61335069]
[1641213340707,0.50000002,174.54,174.53,4.08115075]
[1641213341408,0.26,174.56,174.53,6.61335069]
[1641213341710,1.80959068,174.57,174.53,6.61335069]
[1641213342509,8.5951,174.56,174.53,6.61335069]
[1641213342708,0.50000002,174.55,174.53,4.08115075]
[1641213343315,0.50000002,174.55,174.53,6.61335069]
[1641213344416,0.50000002,174.55,174.53,4.08115075]
[1641213344817,0.50000002,174.55,174.53,6.61335069]
[1641213345016,8.8551,174.56,174.53,6.61335069]
[1641213345646,3.03219997,174.55,174.53,4.08115075]
[1641213345945,11.62799997,174.55,174.53,4.08115075]
[1641213346145,11.88799997,174.55,174.53,4.08115075]
[1641213347750,13.43759065,174.55,174.53,4.08115075]
[1641213348652,34.50000002,174.54,174.53,4.08115075]
[1641213348847,43.09700002,174.54,174.53,4.08115075]
[1641213349047,43.35700002,174.54,174.53,4.08115075]
[1641213351054,44.7836937,174.54,174.53,4.08115075]
[1641213353050,43.35700002,174.54,174.53,4.08115075]
[1641213356659,43.35700002,174.54,174.53,5.075e-05]
[1641213356860,75.2836937,174.54,174.53,5.075e-05]
[1641213357060,84.6304937,174.54,174.53,5.075e-05]
[1641213357459,84.1304937,174.54,174.53,5.075e-05]
[1641213357861,84.6304937,174.54,174.53,5.075e-05]
[1641213358863,84.1304937,174.54,174.53,5.075e-05]
[1641213359063,84.6304937,174.54,174.53,5.075e-05]
[1641213360863,54.07857945,174.54,174.53,5.075e-05]
[1641213361765,52.15188577,174.54,174.53,5.075e-05]
[1641213361966,52.65188577,174.54,174.53,5.075e-05]
[1641213362967,52.15188577,174.54,174.53,5.075e-05]
[1641213364393,50.90508577,174.54,174.53,5.075e-05]
[1641213365993,52.25288577,174.54,174.53,5.075e-05]
[1641213366595,54.17957945,174.54,174.53,5.075e-05]
[1641213372399,53.91957945,174.54,174.53,5.075e-05]
[1641213372600,51.99288577,174.54,174.53,5.075e-05]
[1641213373802,52.25288577,174.54,174.53,5.075e-05]
[1641213374810,54.17957945,174.54,174.53,5.075e-05]
[1641213376008,53.67957945,174.54,174.53,5.075e-05]
[1641213376209,54.17957945,174.54,174.53,5.075e-05]
[1641213377207,54.17957945,174.54,174.44,1.3476]
[1641213377208,66.91895414,174.53,174.39,77.8428]
[1641213377509,2.65194793,174.45,174.39,77.8428]
[1641213377707,28.6701,174.48,174.39,76.5769]
[1641213377908,8.1,174.49,174.39,76.5769]
[1641213378110,8.1,174.54,174.39,101.32891372]
[1641213378308,9.3437,174.54,174.39,101.32891372]
[1641213378508,38.0045,174.54,174.39,101.32891372]
[1641213378708,2.57180817,174.51,174.39,101.32891372]
[1641213378910,2.57180817,174.51,174.4,1.3258]
[1641213379107,2.57180817,174.51,174.41,8.5989]
[1641213379307,1.57803013,174.5,174.39,76.5769]
[1641213379510,3.06163013,174.5,174.4,1.306]
[1641213379912,1.57803013,174.49,174.4,1.566]
[1641213380110,1.83803013,174.49,174.4,1.566]
[1641213380312,8.5994,174.47,174.4,10.1657]
[1641213381911,8.8594,174.47,174.4,10.1657]
[1641213383113,8.8594,174.47,174.4,9.9057]
[1641213384413,8.5989,174.48,174.4,9.9057]
[1641213385515,8.5989,174.48,174.4,10.1657]
[1641213386115,8.8589,174.48,174.4,10.1657]
[1641213386315,8.5989,174.48,174.4,10.1657]
[1641213386516,8.8589,174.48,174.4,10.1657]
[1641213396550,8.5989,174.48,174.4,10.1657]
[1641213396749,1.57803013,174.49,174.4,10.1657]
[1641213398054,2.50387978,174.51,174.4,10.1657]
[1641213401174,8.597,174.52,174.4,10.1657]
[1641213401797,1.57803013,174.53,174.4,18.2657]
[1641213402999,2.42878701,174.52,174.4,18.2657]
[1641213408608,2.42878701,174.52,174.4,19.69239368]
[1641213411313,2.42878701,174.52,174.4,19.43239368]
[1641213411516,11.02568701,174.52,174.4,18.0057]
[1641213412014,11.28568701,174.52,174.4,18.0057]
[1641213412616,11.02568701,174.52,174.4,18.0057]
[1641213413117,12.60371714,174.52,174.4,18.0057]
[1641213413418,12.60371714,174.52,174.4,18.2657]
[1641213414118,11.02568701,174.52,174.4,18.2657]
[1641213415619,12.28608701,174.52,174.4,18.2657]
[1641213415820,13.86411714,174.52,174.4,18.0057]
[1641213416020,14.12411714,174.52,174.4,18.0057]
[1641213417024,14.12411714,174.52,174.4,18.2657]
[1641213426654,12.54608701,174.52,174.4,18.2657]
[1641213428258,10.1173,174.52,174.4,18.2657]
[1641213429060,11.69533013,174.52,174.4,18.2657]
[1641213429260,2.50779681,174.51,174.4,18.2657]
[1641213429462,8.598,174.5,174.4,18.2657]
[1641213430166,1.2996,174.49,174.4,18.2657]
[1641213436467,8.598,174.5,174.4,18.2657]
[1641213436468,8.5972,174.51,174.4,19.69239368]
[1641213436671,1.57803013,174.52,174.4,19.69239368]
[1641213436871,1.57803013,174.53,174.4,19.69239368]
[1641213437871,2.42247556,174.52,174.4,19.69239368]
[1641213439776,2.42247556,174.52,174.4,18.86070357]
[1641213440173,2.42247556,174.52,174.4,18.38639368]
[1641213440374,2.42247556,174.52,174.4,16.9597]
[1641213440873,2.42247556,174.52,174.46,8.5955]
[1641213441075,2.42247556,174.52,174.46,8.8555]
[1641213441876,2.42247556,174.52,174.46,8.5955]
[1641213442177,2.42247556,174.52,174.45,8.5971]
[1641213443476,11.01897556,174.52,174.45,0.26]
[1641213443676,1.2694,174.51,174.45,0.26]
[1641213443877,1.2694,174.51,174.44,8.5976]
[1641213444078,1.2694,174.51,174.44,8.8576]
[1641213445484,8.5976,174.5,174.44,8.8576]
[1641213447315,8.5976,174.5,174.44,0.26]
[1641213447514,8.5976,174.5,174.43,10.1796]
[1641213447712,8.5976,174.5,174.43,9.9196]
[1641213447913,8.5976,174.5,174.43,8.598]
[1641213449116,8.5976,174.5,174.43,8.858]
[1641213451413,8.8576,174.5,174.41,8.5986]
[1641213451613,8.8576,174.5,174.42,0.26]
[1641213451813,8.8576,174.5,174.41,8.5986]
[1641213452215,1.3458,174.49,174.39,77.8899]
[1641213452716,1.6058,174.49,174.39,77.8899]
[1641213453316,8.5999,174.45,174.39,86.7498]
[1641213453514,11.1688312,174.45,174.39,86.7498]
[1641213453814,11.1688312,174.45,174.39,86.4898]
[1641213455020,11.1688312,174.45,174.39,86.7498]
[1641213458125,8.5999,174.45,174.39,86.7498]
[1641213458425,8.5999,174.45,174.28,2.98358712]
[1641213458627,8.6026,174.4,174.28,1.2334]
[1641213458825,8.6026,174.4,174.3,12.79438793]
[1641213459025,0.26,174.45,174.3,12.79438793]
[1641213459226,8.1,174.47,174.3,12.79438793]
[1641213459227,2.60463611,174.44,174.3,12.79438793]
[1641213459427,32.85786624,174.44,174.34,8.6022]
[1641213459625,1.3046,174.43,174.34,8.6022]
[1641213460027,1.5646,174.43,174.34,8.6022]
[1641213460327,3.14263013,174.43,174.34,8.6022]
[1641213460525,8.6026,174.4,174.34,8.6022]
[1641213460925,8.6026,174.4,174.34,8.8622]
[1641213462327,8.6026,174.4,174.34,0.26]
[1641213462529,8.6026,174.4,174.33,8.8627]
[1641213464329,8.6026,174.4,174.33,0.26]
[1641213464528,8.8626,174.4,174.32,8.8632]
[1641213468836,8.6026,174.4,174.32,8.8632]
[1641213470740,8.6019,174.41,174.32,8.8632]
[1641213472046,8.6019,174.41,174.32,16.9632]
[1641213473878,8.6019,174.41,174.32,8.6032]
[1641213474079,8.8619,174.41,174.32,8.6032]
[1641213474679,8.6032,174.39,174.32,8.6032]
[1641213474884,1.2777,174.4,174.32,8.6032]
[1641213475980,1.2777,174.4,174.32,8.8632]
[1641213476182,1.2777,174.4,174.32,8.6032]
[1641213476383,9.8806,174.4,174.32,8.6032]
[1641213477584,9.8806,174.4,174.32,8.8632]
[1641213478389,9.8806,174.4,174.32,8.6032]
[1641213478587,9.8806,174.4,174.31,8.6037]
[1641213478787,10.1406,174.4,174.31,8.6037]
[1641213479592,10.1406,174.4,174.3,8.6042]
[1641213479790,10.1406,174.4,174.29,1.2605]
[1641213480590,10.1406,174.4,174.27,73.5894]
[1641213480893,10.6406,174.4,174.28,8.6052]
[1641213481090,1.57803013,174.39,174.28,8.6052]
[1641213481290,8.6054,174.34,174.28,8.6052]
[1641213482894,8.6054,174.34,174.28,0.26]
[1641213483094,8.6054,174.34,174.27,82.4551]
[1641213484695,8.605,174.35,174.27,82.4551]
[1641213484996,8.605,174.35,174.27,0.26]
[1641213485297,8.865,174.35,174.27,0.26]
[1641213485501,8.865,174.35,174.24,8.36]
[1641213485696,1.2324,174.34,174.24,8.36]
[1641213485897,8.6062,174.33,174.24,8.36]
[1641213486097,2.2532771,174.32,174.24,8.36]
[1641213486498,2.5132771,174.32,174.24,8.1]
[1641213486699,3.7844771,174.32,174.24,8.1]
[1641213487500,17.1200771,174.32,174.2,16.7086]
[1641213487699,1.42669368,174.31,174.17,84.99158793]
[1641213487899,1.92669368,174.31,174.17,84.99158793]
[1641213488098,2.18669368,174.31,174.17,84.99158793]
[1641213488701,2.18669368,174.31,174.17,80.2972]
[1641213488902,0.76,174.31,174.17,79.7972]
[1641213489100,2.95186185,174.26,174.17,88.4073]
[1641213490502,8.6093,174.28,174.17,88.4073]
[1641213490705,8.6093,174.28,174.17,89.83399368]
[1641213491504,2.35359395,174.27,174.17,90.09399368]
[1641213493404,2.35359395,174.27,174.17,88.6673]
[1641213493807,10.96319395,174.27,174.17,88.4073]
[1641213495208,10.96319395,174.27,174.17,88.6673]
[1641213495611,2.35359395,174.27,174.17,88.6673]
[1641213495812,2.35359395,174.27,174.17,90.09399368]
[1641213496819,2.35359395,174.27,174.17,89.83399368]
[1641213498122,2.35359395,174.27,174.17,90.09399368]
[1641213498325,1.3461,174.28,174.17,90.09399368]
[1641213498520,28.6962,174.33,174.17,91.37859368]
[1641213498818,1.2958,174.32,174.17,91.37859368]
[1641213499020,1.5558,174.32,174.17,91.37859368]
[1641213499241,1.5558,174.32,174.17,89.9519]
[1641213499442,10.79187293,174.32,174.17,89.9519]
[1641213499645,2.18457293,174.32,174.17,91.37859368]
[1641213499842,2.18457293,174.32,174.17,90.87859368]
[1641213500644,2.18457293,174.32,174.17,101.45381519]
[1641213501044,72.1787,174.36,174.17,101.45381519]
[1641213501244,1.5589,174.35,174.18,73.1999]
[1641213501443,1.5589,174.35,174.26,8.605]
[1641213501843,1.3268,174.38,174.26,8.865]
[1641213502044,2.3202463,174.37,174.26,8.865]
[1641213502946,10.9248463,174.37,174.26,8.865]
[1641213503343,11.1848463,174.37,174.26,8.865]
[1641213503746,11.1848463,174.37,174.26,0.26]
[1641213504153,8.607,174.32,174.25,0.26]
[1641213504348,2.43556153,174.31,174.24,0.26]
[1641213504545,2.43556153,174.31,174.22,82.6763]
[1641213505148,2.43556153,174.31,174.22,82.4163]
[1641213505445,2.43556153,174.31,174.22,91.0235]
[1641213507954,2.69556153,174.31,174.22,91.0235]
[1641213508951,2.69556153,174.31,174.22,91.2835]
[1641213510152,11.30306153,174.31,174.22,81.413]
[1641213510354,11.30306153,174.31,174.22,73.313]
[1641213511753,1.255,174.3,174.22,73.313]
[1641213511957,9.863,174.3,174.22,73.313]
[1641213512154,10.123,174.3,174.22,73.313]
[1641213512355,10.123,174.3,174.22,73.053]
[1641213513654,10.123,174.3,174.22,73.313]
[1641213515257,1.255,174.3,174.22,81.9205]
[1641213515457,2.43556153,174.31,174.22,81.9205]
[1641213515856,2.43556153,174.31,174.23,24.49334729]
[1641213516057,2.43556153,174.31,174.23,24.75334729]
[1641213516257,2.43556153,174.31,174.23,24.66286272]
[1641213516458,2.43556153,174.31,174.25,8.6062]
[1641213516857,2.43556153,174.31,174.25,8.8662]
[1641213519266,2.43556153,174.31,174.23,9.8896]
[1641213519560,2.43556153,174.31,174.22,73.053]
[1641213519561,2.69556153,174.31,174.22,73.053]
[1641213519759,2.43556153,174.31,174.22,73.053]
[1641213520559,2.43556153,174.31,174.22,73.313]
[1641213521159,2.69556153,174.31,174.22,73.313]
[1641213521364,2.43556153,174.31,174.22,73.313]
[1641213521563,11.04296153,174.31,174.22,73.313]
[1641213522463,11.04296153,174.31,174.22,81.9207]
[1641213522662,2.43556153,174.31,174.22,81.9207]
[1641213523664,2.43556153,174.31,174.22,90.0207]
[1641213524070,1.2996,174.33,174.22,92.68749368]
[1641213524668,9.906,174.33,174.22,92.68749368]
[1641213525168,3.0585422,174.32,174.22,92.68749368]
[1641213526003,11.6653422,174.32,174.22,92.68749368]
[1641213526208,11.6653422,174.32,174.22,91.2608]
[1641213526799,11.6653422,174.32,174.22,91.0008]
[1641213527000,11.9253422,174.32,174.22,91.0008]
[1641213527203,1.3163,174.31,174.22,91.0008]
[1641213527402,1.3163,174.31,174.22,82.9008]
[1641213527600,1.5763,174.31,174.22,82.9008]
[1641213527800,1.3163,174.31,174.22,82.9008]
[1641213528402,8.6082,174.29,174.22,74.2931]
[1641213528602,1.3163,174.31,174.22,73.053]
[1641213529001,1.5763,174.31,174.22,73.053]
[1641213529402,8.6085,174.29,174.22,81.6608]
[1641213529604,8.6085,174.29,174.22,81.9208]
[1641213529803,1.5763,174.31,174.22,81.9208]
[1641213531206,8.6076,174.3,174.22,81.9208]
[1641213532405,8.6071,174.31,174.22,81.9208]
[1641213532604,3.0585422,174.32,174.22,90.0208]
[1641213532806,1.2844,174.33,174.22,90.0208]
[1641213533003,1.2844,174.33,174.23,1.2692]
[1641213533204,1.2844,174.33,174.24,29.73555318]
[1641213533407,1.2844,174.33,174.24,37.83555318]
[1641213533606,1.57803013,174.34,174.24,38.09555318]
[1641213533805,2.6906933,174.34,174.24,38.09555318]
[1641213534205,2.6906933,174.34,174.25,1.2784]
[1641213534605,2.6906933,174.34,174.25,1.5384]
[1641213535207,2.6906933,174.34,174.28,8.6051]
[1641213535506,3.9125933,174.34,174.28,8.8651]
[1641213537713,3.9125933,174.34,174.28,8.6051]
[1641213537910,3.9125933,174.34,174.26,8.6058]
[1641213539113,3.9125933,174.34,174.26,8.8658]
[1641213539511,12.5182933,174.34,174.26,8.8658]
[1641213546119,78.4632,174.35,174.26,16.9658]
[1641213546318,1.57803013,174.37,174.26,18.39249368]
[1641213546918,1.57803013,174.38,174.26,18.39249368]
[1641213547120,2.32179731,174.36,174.31,8.6029]
[1641213547319,2.32179731,174.36,174.28,8.1]
[1641213547521,2.58179731,174.36,174.24,8.1]
[1641213547723,1.2894,174.35,174.24,9.4205]
[1641213548118,1.2894,174.35,174.27,8.605]
[1641213548318,1.2894,174.35,174.27,16.705]
[1641213548920,1.2894,174.35,174.27,8.865]
[1641213549121,1.2894,174.35,174.27,0.26]
[1641213549328,10.1544,174.35,174.27,0.26]
[1641213549525,10.1544,174.35,174.26,8.8656]
[1641213550425,9.8944,174.35,174.26,8.8656]
[1641213550623,9.8944,174.35,174.26,10.1894]
[1641213550824,9.8944,174.35,174.27,8.1]
[1641213551024,9.8944,174.35,174.27,16.9648]
[1641213551224,1.2894,174.35,174.27,16.9648]
[1641213554927,1.2894,174.35,174.28,29.08442799]
[1641213555226,1.2894,174.35,174.3,8.6036]
[1641213555429,1.2894,174.35,174.3,16.7036]
[1641213555629,1.2894,174.35,174.3,16.9636]
[1641213560357,1.2894,174.35,174.3,8.8636]
[1641213562158,1.2894,174.35,174.3,16.9636]
[1641213563160,1.2894,174.35,174.23,1.2778]
[1641213563359,3.47609368,174.35,174.16,74.8182]
[1641213563562,2.97609368,174.35,174.16,76.1031]
[1641213563763,2.97609368,174.35,174.19,8.1]
[1641213564562,2.97609368,174.35,174.2,72.966]
[1641213564765,1.57803013,174.33,174.22,1.3048]
[1641213564963,1.57803013,174.33,174.22,1.5648]
[1641213565367,1.57803013,174.33,174.22,30.50636598]
[1641213565567,1.57803013,174.34,174.22,30.50636598]
[1641213565867,2.86153013,174.34,174.22,1.5648]
[1641213566066,3.12153013,174.34,174.22,1.5648]
[1641213566265,1.5435,174.34,174.22,1.5648]
[1641213566465,1.5435,174.34,174.24,8.6062]
[1641213566466,8.6065,174.32,174.24,8.6062]
[1641213566866,8.6065,174.32,174.24,8.8662]
[1641213569772,8.606,174.33,174.24,8.8662]
[1641213570173,8.606,174.33,174.24,8.6062]
[1641213571572,8.606,174.33,174.24,8.8662]
[1641213571972,9.889,174.34,174.24,8.8662]
[1641213572375,1.2835,174.34,174.24,8.8662]
[1641213573075,10.92629731,174.36,174.25,1.3224]
[1641213573277,10.92629731,174.36,174.28,8.6045]
[1641213573476,10.92629731,174.36,174.28,8.8645]
[1641213573680,10.92629731,174.36,174.28,0.26]
[1641213574176,10.92629731,174.36,174.25,0.26]
[1641213574177,11.18629731,174.36,174.25,0.26]
[1641213574376,8.6062,174.33,174.25,8.8657]
[1641213576378,9.8611,174.35,174.25,8.8657]
[1641213576577,9.8611,174.35,174.25,31.96282684]
[1641213576779,9.8611,174.35,174.25,40.06282684]
[1641213577079,10.3611,174.35,174.25,40.06282684]
[1641213577278,9.8611,174.35,174.26,1.2295]
[1641213577485,9.8611,174.35,174.27,8.6051]
[1641213577878,9.8611,174.35,174.27,8.8651]
[1641213578879,1.2557,174.35,174.27,8.8651]
[1641213579678,1.2557,174.35,174.27,0.26]
[1641213579878,9.8607,174.35,174.27,0.26]
[1641213580077,9.8607,174.35,174.26,10.0953]
[1641213580278,10.1207,174.35,174.26,10.0953]
[1641213581682,9.8607,174.35,174.26,10.0953]
[1641213583686,9.8607,174.35,174.26,18.1953]
[1641213587582,9.8607,174.35,174.26,17.9353]
[1641213588183,9.8607,174.35,174.26,16.7058]
[1641213588385,10.1207,174.35,174.26,16.7058]
[1641213588786,10.1207,174.35,174.26,18.0208]
[1641213588988,10.1207,174.35,174.26,18.2808]
[1641213589684,10.1207,174.35,174.26,18.0208]
[1641213590187,10.1207,174.35,174.26,16.7058]
[1641213590984,11.69873013,174.35,174.26,16.7058]
[1641213591385,11.69873013,174.35,174.26,8.1]
[1641213591789,11.69873013,174.35,174.26,8.36]
[1641213592391,11.69873013,174.35,174.26,16.9657]
[1641213592789,10.1207,174.35,174.26,16.9657]
[1641213593923,10.1207,174.35,174.26,18.3038]
[1641213595026,9.8607,174.35,174.26,18.3038]
[1641213597027,9.8607,174.35,174.24,8.6063]
[1641213597028,10.1207,174.35,174.24,8.6063]
[1641213597229,10.1207,174.35,174.22,1.2828]
[1641213597429,12.04739368,174.35,174.22,1.2828]
[1641213598029,1.57803013,174.33,174.22,1.2828]
[1641213598229,8.6076,174.3,174.22,9.8904]
[1641213598427,1.57803013,174.33,174.22,10.1504]
[1641213598628,2.84930484,174.3,174.22,10.1504]
[1641213599431,11.45680484,174.3,174.22,9.8904]
[1641213600635,11.45680484,174.3,174.22,1.2828]
[1641213600834,11.71680484,174.3,174.2,8.1]
[1641213601632,8.6093,174.26,174.2,8.1]
[1641213602232,8.6093,174.26,174.2,8.36]
[1641213603034,8.6093,174.26,174.2,0.26]
[1641213603435,8.6093,174.26,174.19,8.6092]
[1641213603834,8.6093,174.26,174.2,8.1]
[1641213604437,8.6093,174.26,174.19,8.6092]
[1641213604835,8.6093,174.26,174.19,8.8692]
[1641213605040,8.8693,174.26,174.19,0.26]
[1641213605438,8.8693,174.26,174.17,16.9698]
[1641213609136,8.8693,174.26,174.17,8.8698]
[1641213609342,8.8693,174.26,174.17,8.36]
[1641213609542,8.8693,174.26,174.17,0.26]
[1641213609939,8.8693,174.26,174.16,18.3224]
[1641213610741,2.88988709,174.24,174.16,18.3224]
[1641213610941,11.50048709,174.24,174.16,18.3224]
[1641213615172,11.50048709,174.24,174.15,72.4328]
[1641213615371,11.76048709,174.24,174.11,8.1]
[1641213615569,1.2605,174.23,174.11,8.1]
[1641213615770,8.6125,174.2,174.11,8.1]
[1641213616770,1.3471,174.19,174.12,8.6123]
[1641213617570,2.59069705,174.18,174.12,8.6123]
[1641213618171,9.9599,174.19,174.12,8.6123]
[1641213618371,1.316,174.23,174.12,8.6123]
[1641213618573,8.6128,174.2,174.12,8.6123]
[1641213619485,11.45896249,174.22,174.12,9.8601]
[1641213619687,11.71896249,174.22,174.12,10.1201]
[1641213620185,11.71896249,174.22,174.12,9.8601]
[1641213620385,1.2425,174.21,174.12,9.8601]
[1641213620594,1.2425,174.21,174.12,8.6123]
[1641213620787,10.1147,174.21,174.11,8.1]
[1641213621188,9.8547,174.21,174.11,8.1]
[1641213621587,1.42669368,174.2,174.07,8.1]
[1641213621788,8.6154,174.14,174.07,8.1]
[1641213621987,3.00766594,174.14,174.07,8.1]
[1641213622291,28.7178,174.19,174.07,8.1]
[1641213622489,1.3209,174.18,174.07,8.1]
[1641213622890,1.5809,174.18,174.07,8.1]
[1641213623290,4.16589575,174.18,174.07,8.1]
[1641213623491,8.6147,174.16,174.07,16.715]
[1641213623689,8.6147,174.16,174.07,18.05]
[1641213623890,8.6147,174.16,174.07,18.31]
[1641213624189,28.713,174.21,174.07,18.31]
[1641213624389,1.42669368,174.22,174.07,24.328]
[1641213624690,8.6119,174.21,174.07,25.75469368]
[1641213624893,8.6119,174.21,174.13,8.6119]
[1641213625089,8.6119,174.21,174.13,8.8719]
[1641213625390,10.81521818,174.21,174.13,8.8719]
[1641213625891,11.07521818,174.21,174.13,8.8719]
[1641213626091,10.81521818,174.21,174.13,8.8719]
[1641213627594,10.81521818,174.21,174.13,8.6119]
[1641213627794,10.81521818,174.21,174.13,16.7119]
[1641213629301,10.81521818,174.21,174.13,16.9719]
[1641213630626,10.81521818,174.21,174.13,24.5169]
[1641213630828,10.81521818,174.21,174.13,7.545]
[1641213631025,11.07521818,174.21,174.13,7.545]
[1641213631427,10.81521818,174.21,174.13,7.545]
[1641213631927,10.81521818,174.21,174.11,1.3132]
[1641213632532,10.81521818,174.21,174.12,8.6125]
[1641213632931,10.81521818,174.21,174.12,8.8725]
[1641213636932,8.6119,174.21,174.12,8.8725]
[1641213637535,8.6113,174.22,174.14,27.65479567]
[1641213637735,1.2489,174.23,174.15,8.6111]
[1641213638033,1.2489,174.23,174.15,10.2158]
[1641213648854,11.56101705,174.25,174.15,10.2158]
[1641213649277,11.56101705,174.25,174.16,8.1]
[1641213649475,11.56101705,174.25,174.17,8.6101]
[1641213649874,11.56101705,174.25,174.17,8.8701]
[1641213650277,11.56101705,174.25,174.17,10.1495]
[1641213659686,11.56101705,174.25,174.17,1.2794]
[1641213659890,11.82101705,174.25,174.13,85.4296]
[1641213660087,11.82101705,174.25,174.13,86.7584]
[1641213660689,1.2717,174.24,174.13,86.7584]
[1641213660887,8.6119,174.21,174.13,95.3702]
[1641213661086,8.6119,174.21,174.13,95.6302]
[1641213662689,8.6113,174.22,174.13,95.6302]
[1641213664089,8.6113,174.22,174.13,95.3702]
[1641213664690,1.57803013,174.26,174.13,95.3702]
[1641213665090,1.3006,174.28,174.14,1.42669368]
[1641213665091,1.57803013,174.27,174.14,1.42669368]
[1641213665390,1.57803013,174.27,174.15,8.1]
[1641213665590,1.3006,174.28,174.15,8.36]
[1641213665792,2.63328596,174.27,174.16,2.66689368]
[1641213665991,2.63328596,174.27,174.17,8.1]
[1641213666191,2.63328596,174.27,174.17,9.52669368]
[1641213666394,11.24208596,174.27,174.2,8.6088]
[1641213666691,11.24208596,174.27,174.2,8.8688]
[1641213674202,11.24208596,174.27,174.18,1.3288]
[1641213674403,11.50208596,174.27,174.17,16.7104]
[1641213674600,11.50208596,174.27,174.17,8.6104]
[1641213674801,12.00208596,174.27,174.17,8.6104]
[1641213675003,8.6111,174.23,174.13,85.4296]
[1641213675826,8.6111,174.23,174.13,85.6896]
[1641213676530,2.17703013,174.21,174.15,8.6111]
[1641213676827,8.6104,174.24,174.15,8.6111]
[1641213677026,8.6104,174.24,174.15,8.8711]
[1641213677727,2.65428388,174.23,174.15,8.8711]
[1641213682140,1.2459,174.26,174.15,8.8711]
[1641213682338,1.2459,174.26,174.16,8.1]
[1641213682537,1.2459,174.26,174.2,8.6089]
[1641213682737,1.2459,174.26,174.2,13.9649]
[1641213682938,1.2459,174.26,174.2,14.2249]
[1641213683141,4.06865146,174.26,174.2,14.2249]
[1641213683339,4.06865146,174.26,174.2,5.616]
[1641213684741,4.06865146,174.26,174.2,0.26]
[1641213684939,9.8553,174.26,174.2,0.26]
[1641213685142,9.8553,174.26,174.2,6.169]